bitfinex/quotes_BTCUSD_20220731
["timestamp","ask_amount","ask_price","bid_price","bid_amount"]
[1659297582056,0.15862271,23831.0,23829.0,0.04188]
[1659297582784,0.129,23831.0,23829.0,0.05504804]
[1659297582999,0.129,23831.0,23828.0,0.3]
[1659297583228,0.05,23831.0,23828.0,0.3]
[1659297583445,0.00176966,23832.0,23828.0,0.3]
[1659297583708,0.6376,23834.0,23827.0,0.40725733]
[1659297583709,0.0017587,23831.0,23827.0,0.40725733]
[1659297583947,0.0807587,23831.0,23827.0,0.40725733]
[1659297584193,0.0807587,23831.0,23830.0,0.04188]
[1659297584421,0.5288,23837.0,23836.0,0.05]
[1659297584630,0.5288,23837.0,23836.0,0.44913733]
[1659297584916,0.5288,23837.0,23836.0,0.40725733]
[1659297586048,0.5288,23837.0,23836.0,0.024]
[1659297586306,0.57901376,23837.0,23836.0,0.024]
[1659297586552,0.5788,23837.0,23836.0,0.024]
[1659297586766,0.5788,23837.0,23836.0,0.43125733]
[1659297587210,0.55820895,23837.0,23836.0,0.40725733]
[1659297587460,0.5288,23837.0,23836.0,0.40725733]
[1659297587682,0.53056531,23837.0,23836.0,0.41332451]
[1659297587927,0.53056531,23837.0,23836.0,0.78120451]
[1659297588399,0.56018802,23837.0,23836.0,0.026]
[1659297589288,0.61018802,23837.0,23832.0,0.04188]
[1659297589518,0.61018802,23837.0,23833.0,0.44913733]
[1659297589751,0.61018802,23837.0,23834.0,0.35504682]
[1659297590026,0.58056531,23837.0,23836.0,0.026]
[1659297590485,0.58056531,23837.0,23836.0,0.43325733]
[1659297590706,0.58056531,23837.0,23836.0,0.73325733]
[1659297590948,0.58056531,23837.0,23836.0,0.77513733]
[1659297591184,0.53056531,23837.0,23836.0,0.77513733]
[1659297591429,0.53056531,23837.0,23836.0,0.74913733]
[1659297591655,0.53056531,23837.0,23836.0,0.84331081]
[1659297591876,0.63433498,23842.0,23836.0,1.14331081]
[1659297592114,0.63433498,23842.0,23841.0,0.49913733]
[1659297592330,0.63433498,23842.0,23841.0,0.84404154]
[1659297593280,0.63433498,23842.0,23841.0,0.84494123]
[1659297593750,0.63433498,23842.0,23841.0,0.89946471]
[1659297594008,0.63433498,23842.0,23841.0,0.93546471]
[1659297594460,0.63433498,23842.0,23841.0,1.04026871]
[1659297594682,0.63433498,23842.0,23841.0,0.99026871]
[1659297594912,0.63433498,23842.0,23841.0,0.95874871]
[1659297595416,0.63433498,23842.0,23841.0,0.92274871]
[1659297595657,0.63433498,23842.0,23841.0,0.91010523]
[1659297595902,0.63433498,23842.0,23841.0,0.95110523]
[1659297596128,0.63433498,23842.0,23841.0,0.90110523]
[1659297596363,0.63433498,23842.0,23841.0,0.89803143]
[1659297596833,0.63433498,23842.0,23841.0,0.91031315]
[1659297596834,0.68433498,23842.0,23841.0,0.91031315]
[1659297597276,0.68433498,23842.0,23841.0,0.86931315]
[1659297597928,0.68433498,23842.0,23841.0,0.91031315]
[1659297598831,0.63433498,23842.0,23841.0,0.80550915]
[1659297599311,0.68433498,23842.0,23841.0,0.76450915]
[1659297599994,0.68433498,23842.0,23841.0,0.80550915]
[1659297600218,0.68433498,23842.0,23841.0,0.79934525]
[1659297601388,0.68433498,23842.0,23841.0,0.76360946]
[1659297601603,0.68433498,23842.0,23841.0,0.7512474]
[1659297602054,0.68433498,23842.0,23841.0,0.8012474]
[1659297602278,0.68433498,23842.0,23841.0,0.8033045]
[1659297603045,0.68433498,23842.0,23841.0,0.05]
[1659297603046,0.98433498,23842.0,23841.0,0.05]
[1659297603256,0.98433498,23842.0,23833.0,0.6089]
[1659297603257,1.28526498,23842.0,23833.0,0.6089]
[1659297603482,1.39159231,23842.0,23834.0,0.40725733]
[1659297603929,1.17159231,23842.0,23834.0,0.40725733]
[1659297604188,1.17159231,23842.0,23836.0,0.44913733]
[1659297604189,0.76433498,23842.0,23836.0,0.44913733]
[1659297604426,0.71433498,23842.0,23838.0,0.04188]
[1659297604658,0.71433498,23842.0,23840.0,0.04188]
[1659297604892,0.71433498,23842.0,23841.0,0.40725733]
[1659297605126,0.71433498,23842.0,23841.0,0.70725733]
[1659297605340,0.63433498,23842.0,23841.0,0.70725733]
[1659297605636,0.63433498,23842.0,23841.0,0.74913733]
[1659297605872,0.71395769,23842.0,23841.0,0.40725733]
[1659297606094,0.71395769,23842.0,23841.0,0.46025733]
[1659297606337,0.68433498,23842.0,23841.0,0.46025733]
[1659297607007,0.71395769,23842.0,23841.0,0.46025733]
[1659297607224,0.71395769,23842.0,23841.0,0.40725733]
[1659297607440,0.68433498,23842.0,23841.0,0.40725733]
[1659297607661,0.68433498,23842.0,23841.0,0.41416167]
[1659297607884,0.71395769,23842.0,23840.0,0.44913733]
[1659297608099,0.71395769,23842.0,23841.0,0.053]
[1659297608339,0.68433498,23842.0,23841.0,0.053]
[1659297608995,0.71395769,23842.0,23841.0,0.053]
[1659297609256,0.68433498,23842.0,23840.0,0.55397033]
[1659297609702,0.68433498,23842.0,23840.0,0.51209033]
[1659297609932,0.68433498,23842.0,23840.0,0.053]
[1659297609933,0.23470775,23841.0,23840.0,0.053]
[1659297610150,0.26433046,23841.0,23840.0,0.053]
[1659297611094,0.23470775,23841.0,23840.0,0.053]
[1659297611308,0.23470775,23841.0,23836.0,0.14188]
[1659297611545,0.23470775,23841.0,23836.0,0.54913733]
[1659297611813,0.23470775,23841.0,23836.0,0.65398533]
[1659297612023,0.23470775,23841.0,23836.0,0.62913733]
[1659297612247,0.23470775,23841.0,23837.0,0.3]
[1659297612463,0.23470775,23841.0,23836.0,0.62913733]
[1659297613377,0.23470775,23841.0,23836.0,0.54913733]
[1659297613608,0.23470775,23841.0,23836.0,0.44913733]
[1659297614027,0.31470775,23841.0,23836.0,0.44913733]
[1659297615158,0.31470775,23841.0,23836.0,0.55399033]
[1659297615379,0.0054991,23841.0,23838.0,0.04188]
[1659297615681,0.0054991,23841.0,23839.0,0.45440154]
[1659297616009,0.0054991,23841.0,23840.0,0.70725733]
[1659297616239,0.0054991,23841.0,23840.0,0.84913733]
[1659297616697,0.0054991,23841.0,23840.0,0.81704502]
[1659297616928,0.0054991,23841.0,23840.0,0.86704502]
[1659297617855,0.0054991,23841.0,23840.0,0.81704502]
[1659297618087,0.0054991,23841.0,23840.0,0.94604502]
[1659297618577,0.0054991,23841.0,23840.0,0.89604502]
[1659297618800,0.0054991,23841.0,23840.0,0.89705608]
[1659297619025,0.0054991,23841.0,23840.0,0.94705608]
[1659297619501,0.0054991,23841.0,23840.0,0.90517608]
[1659297619941,0.0054991,23841.0,23840.0,0.89817608]
[1659297620621,0.0054991,23841.0,23840.0,0.94005608]
[1659297620900,0.0054991,23841.0,23840.0,1.14969008]
[1659297621362,0.0054991,23841.0,23840.0,1.07769008]
[1659297621795,0.0054991,23841.0,23840.0,1.01827258]
[1659297622054,0.0054991,23841.0,23840.0,0.74127258]
[1659297623447,0.0054991,23841.0,23840.0,1.01827258]
[1659297623879,0.0054991,23841.0,23840.0,1.09127258]
[1659297625014,0.0054991,23841.0,23840.0,0.99939258]
[1659297625233,0.0054991,23841.0,23840.0,1.01827258]
[1659297625457,0.0054991,23841.0,23840.0,0.96827258]
[1659297625952,0.0054991,23841.0,23840.0,1.04939258]
[1659297626178,0.0054991,23841.0,23840.0,1.09127258]
[1659297627357,0.0054991,23841.0,23840.0,1.01827258]
[1659297627797,0.0054991,23841.0,23840.0,0.80863858]
[1659297628024,0.0054991,23841.0,23840.0,0.88163858]
[1659297628246,0.0054991,23841.0,23840.0,1.19609358]
[1659297629178,0.0054991,23841.0,23840.0,1.12309358]
[1659297629838,0.00541667,23841.0,23840.0,1.12309358]
[1659297630074,0.00541667,23841.0,23840.0,1.19209358]
[1659297631225,0.00541667,23841.0,23840.0,1.12309358]
[1659297631444,0.00541667,23841.0,23840.0,1.39986032]
[1659297631874,0.00541667,23841.0,23840.0,1.72086032]
[1659297632555,0.00541667,23841.0,23840.0,1.37086032]
[1659297633305,0.00541667,23841.0,23840.0,1.30186032]
[1659297633759,0.00541667,23841.0,23840.0,1.65186032]
[1659297633972,0.00541667,23841.0,23840.0,1.72341528]
[1659297635127,0.00541667,23841.0,23840.0,1.65441528]
[1659297635827,0.00541667,23841.0,23840.0,1.72341528]
[1659297636402,0.00541667,23841.0,23840.0,1.73605876]
[1659297636861,0.00541667,23841.0,23840.0,1.73436661]
[1659297637321,0.00541667,23841.0,23840.0,1.66536661]
[1659297637953,0.00541667,23841.0,23840.0,1.73436661]
[1659297638705,0.63433498,23842.0,23841.0,0.05]
[1659297638922,0.63433498,23842.0,23841.0,2.46730407]
[1659297639149,0.63433498,23842.0,23841.0,2.99132007]
[1659297639399,0.63433498,23842.0,23841.0,2.71455333]
[1659297639619,0.63433498,23842.0,23841.0,2.72719681]
[1659297639839,0.63433498,23842.0,23841.0,3.08295312]
[1659297640757,0.63433498,23842.0,23841.0,3.13295312]
[1659297641489,0.63433498,23842.0,23841.0,2.69355312]
[1659297641715,0.63433498,23842.0,23841.0,2.61355312]
[1659297641936,0.63433498,23842.0,23841.0,2.69355312]
[1659297642613,0.63433498,23842.0,23841.0,3.13295312]
[1659297643244,0.63433498,23842.0,23841.0,2.94815012]
[1659297643785,0.63433498,23842.0,23841.0,3.05295212]
[1659297644035,0.63433498,23842.0,23841.0,3.12495212]
[1659297644247,0.63433498,23842.0,23841.0,3.02015012]
[1659297645344,0.63433498,23842.0,23841.0,2.94815012]
[1659297645975,0.63433498,23842.0,23841.0,3.02815012]
[1659297646246,0.63858967,23842.0,23841.0,3.13295112]
[1659297646463,0.63433498,23842.0,23841.0,3.13295112]
[1659297647099,0.6361588,23842.0,23841.0,3.13295112]
[1659297647334,0.63433498,23842.0,23841.0,2.35295112]
[1659297647774,0.63433498,23842.0,23841.0,2.30295112]
[1659297647978,0.63433498,23842.0,23841.0,2.38295112]
[1659297648185,0.63621527,23842.0,23841.0,2.38369438]
[1659297648403,0.63433498,23842.0,23841.0,2.42702438]
[1659297649051,0.63616163,23842.0,23841.0,2.42702438]
[1659297649258,0.63616163,23842.0,23841.0,2.34702438]
[1659297649259,0.63433498,23842.0,23841.0,2.34702438]
[1659297649708,0.63433498,23842.0,23841.0,2.29702438]
[1659297649905,0.63433498,23842.0,23841.0,2.37702438]
[1659297651180,0.63433498,23842.0,23841.0,2.29702438]
[1659297652134,0.63433498,23842.0,23841.0,2.33449585]
[1659297653210,0.63433498,23842.0,23841.0,2.24185237]
[1659297654091,0.63433498,23842.0,23841.0,2.33449585]
[1659297654732,0.03031,23843.0,23842.0,0.94388]
[1659297654964,0.03031,23843.0,23842.0,2.29128264]
[1659297655191,0.03031,23843.0,23842.0,2.30392612]
[1659297655445,0.03031,23843.0,23842.0,2.72311312]
[1659297656081,0.03031,23843.0,23842.0,2.80390774]
[1659297657209,0.03031,23843.0,23842.0,2.72390774]
[1659297657906,0.03031,23843.0,23842.0,2.20390774]
[1659297659216,0.03031,23843.0,23842.0,2.12390774]
[1659297659449,0.001,23848.0,23847.0,1.09188]
[1659297659669,0.001,23848.0,23847.0,2.11443733]
[1659297659892,0.001,23848.0,23847.0,2.50996326]
[1659297660144,0.001,23851.0,23850.0,0.09188]
[1659297660362,0.001,23851.0,23850.0,0.50546849]
[1659297660597,0.001,23851.0,23850.0,0.51811197]
[1659297660806,0.13121271,23851.0,23850.0,0.71990081]
[1659297661065,0.14492,23851.0,23850.0,0.70725733]
[1659297661256,0.10159,23851.0,23850.0,0.70725733]
[1659297661525,0.15159,23851.0,23850.0,0.70725733]
[1659297661956,0.15159,23851.0,23850.0,0.74913733]
[1659297662385,0.15159,23851.0,23850.0,0.75652154]
[1659297662386,0.001,23851.0,23850.0,0.75652154]
[1659297662846,0.001,23851.0,23850.0,0.76916502]
[1659297663092,0.49717356,23851.0,23850.0,0.46916502]
[1659297663368,0.49717356,23851.0,23850.0,0.45652154]
[1659297663564,0.49717356,23851.0,23850.0,0.45664137]
[1659297663825,0.051,23851.0,23850.0,0.45664137]
[1659297664027,0.001,23851.0,23850.0,0.49852137]
[1659297664242,0.001,23851.0,23850.0,0.50052137]
[1659297664478,0.001,23851.0,23850.0,0.80052137]
[1659297665325,0.001,23851.0,23850.0,0.71264137]
[1659297665980,0.001,23857.0,23852.0,0.943015]
[1659297666224,0.001,23857.0,23852.0,0.251442]
[1659297666475,0.30093,23856.0,23853.0,0.104777]
[1659297666686,0.30093,23856.0,23854.0,0.00538402]
[1659297666942,0.30093,23856.0,23854.0,0.11016902]
[1659297667164,0.30093,23856.0,23854.0,0.51742635]
[1659297667378,0.35093,23856.0,23854.0,0.51742635]
[1659297667822,0.001,23857.0,23854.0,0.51204233]
[1659297668051,0.30093,23856.0,23855.0,0.00080674]
[1659297668484,0.30093,23856.0,23855.0,0.10558774]
[1659297668707,0.33055271,23856.0,23855.0,0.00080674]
[1659297668933,0.07962271,23856.0,23855.0,0.00080674]
[1659297669150,0.43055271,23856.0,23855.0,0.00080674]
[1659297670197,0.40093,23856.0,23855.0,0.00080674]
[1659297670629,0.09541865,23855.0,23854.0,0.00057332]
[1659297670843,0.39634865,23855.0,23854.0,0.00057332]
[1659297671055,0.39634865,23855.0,23854.0,0.00078276]
[1659297671276,0.12504136,23855.0,23854.0,0.00078276]
[1659297671539,0.42597136,23855.0,23854.0,0.00078276]
[1659297672147,0.42597136,23855.0,23854.0,0.02378276]
[1659297672846,0.35093,23856.0,23854.0,0.02904697]
[1659297673055,0.09541865,23855.0,23854.0,0.23860697]
[1659297673272,0.35093,23856.0,23854.0,0.23860697]
[1659297673484,0.35093,23856.0,23854.0,0.21560697]
[1659297673700,0.001,23857.0,23854.0,0.52993997]
[1659297673918,0.05,23856.0,23854.0,0.52993997]
[1659297674135,0.001,23857.0,23854.0,0.53493997]
[1659297674337,0.30193,23857.0,23855.0,0.104778]
[1659297674790,0.30093,23856.0,23855.0,0.10489382]
[1659297675029,0.05,23856.0,23855.0,0.10489382]
[1659297675250,0.30093,23856.0,23853.0,0.26904982]
[1659297675457,0.35093,23856.0,23855.0,0.104778]
[1659297675697,0.05,23856.0,23855.0,0.104778]
[1659297675909,0.30093,23856.0,23855.0,0.104778]
[1659297676118,0.30093,23856.0,23855.0,0.10558737]
[1659297677045,0.30093,23856.0,23855.0,0.31514337]
[1659297678551,0.29093,23856.0,23855.0,0.31514337]
[1659297680289,0.051,23857.0,23855.0,0.21036537]
[1659297680290,0.001,23857.0,23855.0,0.21036537]
[1659297680546,0.001,23857.0,23855.0,0.00080937]
[1659297680547,0.30092,23856.0,23855.0,0.00080937]
[1659297680957,0.001,23857.0,23855.0,0.00080937]
[1659297681194,0.30092,23856.0,23855.0,0.00080937]
[1659297681435,0.001,23857.0,23855.0,0.21307625]
[1659297681644,0.001,23857.0,23856.0,0.053283]
[1659297681878,0.001,23857.0,23856.0,0.04333]
[1659297682782,0.001,23857.0,23855.0,0.38702377]
[1659297683228,0.30092,23856.0,23855.0,0.34211237]
[1659297683444,0.05,23856.0,23855.0,0.34211237]
[1659297683651,0.35092,23856.0,23855.0,0.34211237]
[1659297683870,0.35092,23856.0,23855.0,0.31511237]
[1659297684117,0.05,23856.0,23855.0,0.39011237]
[1659297684563,0.001,23857.0,23855.0,0.39011237]
[1659297685033,0.30192,23857.0,23855.0,0.39012637]
[1659297685253,0.38692274,23857.0,23855.0,0.39012637]
[1659297685466,0.30092,23856.0,23855.0,0.31512837]
[1659297685955,0.35092,23856.0,23855.0,0.00080937]
[1659297686210,0.05,23856.0,23855.0,0.01680937]
[1659297686438,0.03500274,23856.0,23855.0,0.01680937]
[1659297687331,0.03500274,23856.0,23855.0,0.00080937]
[1659297688264,0.33592274,23856.0,23855.0,0.00080937]
[1659297688501,0.03500274,23856.0,23855.0,0.00080937]
[1659297689162,0.33592274,23856.0,23855.0,0.00080937]
[1659297689410,0.03500274,23856.0,23855.0,0.00080937]
[1659297689634,0.03500274,23856.0,23848.0,0.04188]
[1659297689635,0.84318007,23856.0,23848.0,0.04188]
[1659297689863,0.20963371,23854.0,23848.0,0.40725733]
[1659297690138,0.20963371,23854.0,23847.0,0.40998321]
[1659297690139,0.30092,23853.0,23847.0,0.40998321]
[1659297690345,0.30092,23852.0,23847.0,0.40725733]
[1659297690574,0.05,23851.0,23847.0,0.40998321]
[1659297690797,0.80817733,23851.0,23846.0,0.00272588]
[1659297691022,0.05,23848.0,23845.0,0.04188]
[1659297691489,0.49541865,23845.0,23844.0,0.00272588]
[1659297691711,0.79633865,23845.0,23842.0,0.30262588]
[1659297691925,0.30092,23844.0,23842.0,0.30262588]
[1659297692363,0.49541865,23845.0,23844.0,0.079]
[1659297692364,0.4,23845.0,23844.0,0.079]
[1659297692369,0.45,23845.0,23844.0,0.079]
[1659297692603,0.75092,23845.0,23844.0,0.079]
[1659297693276,0.81412,23845.0,23842.0,0.2999]
[1659297693531,0.30092,23844.0,23843.0,0.00272588]
[1659297693750,0.35092,23844.0,23843.0,0.00272588]
[1659297694406,0.35092,23844.0,23842.0,0.2999]
[1659297694653,0.98042139,23843.0,23842.0,0.2999]
[1659297694779,1.73859872,23843.0,23842.0,0.2999]
[1659297695428,1.68859872,23843.0,23842.0,0.2999]
[1659297696119,1.68859872,23843.0,23842.0,0.3799]
[1659297696348,1.68859872,23843.0,23842.0,0.38262588]
[1659297696995,0.30551603,23843.0,23842.0,0.38262588]
[1659297697219,0.00459603,23843.0,23842.0,0.38262588]
[1659297697460,0.00459603,23843.0,23842.0,0.30262588]
[1659297697683,0.00459603,23843.0,23842.0,0.75176321]
[1659297698105,0.03959877,23843.0,23842.0,0.38162588]
[1659297698342,0.34051877,23843.0,23842.0,0.38162588]
[1659297698605,0.08959877,23843.0,23842.0,0.38162588]
[1659297698795,0.05459603,23843.0,23842.0,0.38162588]
[1659297699018,0.35551603,23843.0,23842.0,0.38162588]
[1659297699270,0.03959877,23843.0,23842.0,0.38162588]
[1659297699485,0.00459603,23843.0,23842.0,0.30262588]
[1659297700180,0.06159877,23843.0,23842.0,0.37862588]
[1659297701336,0.03959877,23843.0,23842.0,0.30262588]
[1659297702034,0.03159603,23843.0,23842.0,0.30262588]
[1659297702270,0.03159603,23843.0,23842.0,0.37962588]
[1659297702487,0.03150887,23843.0,23842.0,0.37962588]
[1659297703377,0.00450887,23843.0,23842.0,0.30262588]
[1659297704047,0.00450887,23843.0,23842.0,0.35562588]
[1659297704285,0.00750887,23843.0,23842.0,0.35562588]
[1659297705407,0.00450887,23843.0,23842.0,0.30262588]
[1659297706081,0.00750887,23843.0,23842.0,0.35562588]
[1659297707402,0.00450887,23843.0,23842.0,0.30262588]
[1659297708094,0.03550887,23843.0,23842.0,0.38062588]
[1659297709416,0.00450887,23843.0,23842.0,0.30262588]
[1659297709849,0.03951161,23843.0,23842.0,0.30262588]
[1659297710063,0.03550887,23843.0,23842.0,0.38062588]
[1659297711341,0.00450887,23843.0,23842.0,0.30262588]
[1659297712082,0.03550887,23843.0,23842.0,0.38062588]
[1659297712730,0.08550887,23843.0,23842.0,0.38062588]
[1659297712957,0.03550887,23843.0,23842.0,0.38062588]
[1659297713183,0.03550887,23843.0,23842.0,0.37562588]
[1659297713397,0.00450887,23843.0,23842.0,0.29762588]
[1659297713595,0.30542887,23843.0,23842.0,0.29762588]
[1659297713709,0.39043161,23843.0,23842.0,0.29762588]
[1659297713900,0.35542887,23843.0,23842.0,0.29762588]
[1659297714125,0.05750887,23843.0,23842.0,0.35062588]
[1659297714334,0.30842887,23843.0,23842.0,0.35062588]
[1659297714531,0.35842887,23843.0,23842.0,0.35062588]
[1659297714753,0.05750887,23843.0,23842.0,0.35062588]
[1659297714962,0.35842887,23843.0,23842.0,0.35062588]
[1659297715252,0.05450887,23843.0,23842.0,0.29762588]
[1659297715495,0.00450887,23843.0,23842.0,0.29762588]
[1659297715701,0.05450887,23843.0,23842.0,0.29762588]
[1659297716041,0.05450887,23843.0,23842.0,0.37462588]
[1659297716236,0.03150887,23843.0,23842.0,0.37462588]
[1659297716469,0.33242887,23843.0,23842.0,0.37462588]
[1659297716683,0.03150887,23843.0,23842.0,0.37462588]
[1659297716910,0.38242887,23843.0,23842.0,0.37462588]
[1659297717161,0.03150887,23843.0,23842.0,0.37462588]
[1659297717392,0.00450887,23843.0,23842.0,0.29762588]
[1659297718294,0.03550887,23843.0,23842.0,0.37562588]
[1659297719382,0.00450887,23843.0,23842.0,0.29762588]
[1659297720063,0.00450887,23843.0,23842.0,0.37562588]
[1659297721436,0.00450887,23843.0,23842.0,0.29762588]
[1659297722097,0.02650887,23843.0,23842.0,0.37362588]
[1659297723335,0.00450887,23843.0,23842.0,0.2949]
[1659297723537,0.00450887,23843.0,23842.0,0.29762588]
[1659297723538,0.35542887,23843.0,23842.0,0.29762588]
[1659297723764,0.05450887,23843.0,23842.0,0.29762588]
[1659297723977,0.05750887,23843.0,23842.0,0.35062588]
[1659297724188,0.00750887,23843.0,23842.0,0.35062588]
[1659297724433,0.04251161,23843.0,23842.0,0.35062588]
[1659297724659,0.00750887,23843.0,23842.0,0.3479]
[1659297725124,0.10570466,23843.0,23842.0,0.3479]
[1659297725336,0.05211466,23843.0,23842.0,0.2949]
[1659297725547,0.35303466,23843.0,23842.0,0.2949]
[1659297725764,0.3880374,23843.0,23842.0,0.2949]
[1659297725984,0.4010374,23843.0,23842.0,0.3689]
[1659297726200,0.36603466,23843.0,23842.0,0.3689]
[1659297726881,0.06511466,23843.0,23842.0,0.3689]
[1659297727144,0.11570466,23843.0,23842.0,0.3689]
[1659297727356,0.11570466,23843.0,23842.0,0.2949]
[1659297727357,0.05211466,23843.0,23842.0,0.2949]
[1659297727580,0.10270466,23843.0,23842.0,0.2949]
[1659297727794,0.15270466,23843.0,23842.0,0.2949]
[1659297728013,0.36603466,23843.0,23842.0,0.3689]
[1659297728238,0.01511466,23843.0,23842.0,0.3689]
[1659297729346,0.00211466,23843.0,23842.0,0.2949]
[1659297729636,0.35303466,23843.0,23842.0,0.2949]
[1659297729800,0.05211466,23843.0,23842.0,0.2949]
[1659297730022,0.02011466,23843.0,23842.0,0.3709]
[1659297731984,0.00211466,23843.0,23842.0,0.2949]
[1659297732179,0.02511466,23843.0,23842.0,0.3719]
[1659297732833,0.0224683,23843.0,23842.0,0.3719]
[1659297733145,0.02459343,23843.0,23842.0,0.3719]
[1659297733464,0.00212513,23843.0,23842.0,0.399732]
[1659297734109,0.00412513,23843.0,23842.0,0.451732]
[1659297735665,0.00412513,23843.0,23842.0,0.399732]
[1659297735805,0.00212513,23843.0,23842.0,0.399732]
[1659297736187,0.00212513,23843.0,23842.0,0.477732]
[1659297736855,0.42031,23857.0,23843.0,0.00211487]
[1659297737085,0.001,23857.0,23854.0,0.00272588]
[1659297737361,0.001,23857.0,23856.0,0.00272588]
[1659297737579,0.001,23857.0,23856.0,0.04605588]
[1659297737804,0.002,23857.0,23856.0,0.38793588]
[1659297738028,0.0042267,23857.0,23856.0,0.73257869]
[1659297738248,0.0832267,23857.0,23856.0,0.73257869]
[1659297738477,0.0832267,23857.0,23856.0,0.71993521]
[1659297739281,0.0832267,23857.0,23856.0,0.41993521]
[1659297739524,0.0832267,23857.0,23856.0,0.76181521]
[1659297739525,0.0042267,23857.0,23856.0,0.76181521]
[1659297739750,0.0042267,23857.0,23856.0,0.46181521]
[1659297739975,0.0042267,23857.0,23856.0,0.76181521]
[1659297740198,0.0042267,23857.0,23856.0,0.84081521]
[1659297740199,0.002,23857.0,23856.0,0.84081521]
[1659297741102,0.002,23857.0,23856.0,0.87225521]
[1659297741329,0.002,23857.0,23856.0,0.84081521]
[1659297741556,0.002,23857.0,23856.0,0.87225521]
[1659297741791,0.001,23859.0,23858.0,1.34388]
[1659297742005,0.001,23859.0,23858.0,2.10386321]
[1659297742241,0.001,23859.0,23858.0,2.14524921]
[1659297742729,0.001,23859.0,23858.0,2.72344921]
[1659297743167,0.001,23859.0,23858.0,2.72428107]
[1659297743389,0.001,23860.0,23859.0,1.78328]
[1659297743639,0.001,23862.0,23859.0,1.78328]
[1659297743640,0.001,23862.0,23860.0,1.05]
[1659297743906,0.001,23862.0,23861.0,1.14849321]
[1659297744142,8.4e-07,23863.0,23862.0,1.39488]
[1659297744398,0.002,23873.0,23870.0,0.05]
[1659297744601,0.002,23873.0,23870.0,0.50186321]
[1659297744842,0.002,23873.0,23870.0,1.19319621]
[1659297745533,0.002,23873.0,23870.0,1.14519621]
[1659297745750,0.002,23873.0,23870.0,1.58459621]
[1659297745967,0.002,23873.0,23871.0,1.7414]
[1659297746192,0.002,23878.0,23877.0,0.05]
[1659297746502,0.002,23878.0,23877.0,0.55904233]
[1659297746722,0.002,23878.0,23877.0,0.51176821]
[1659297746951,0.002,23878.0,23877.0,0.81176821]
[1659297747880,0.002,23878.0,23877.0,0.86176821]
[1659297748095,0.002,23878.0,23877.0,0.86876821]
[1659297748313,0.002,23878.0,23877.0,0.91876821]
[1659297748531,0.002,23878.0,23877.0,1.17076821]
[1659297748769,0.002,23878.0,23877.0,1.6114657]
[1659297749909,0.002,23878.0,23877.0,1.5544657]
[1659297750127,0.002,23878.0,23877.0,1.6344657]
[1659297750419,0.002,23878.0,23877.0,1.6658757]
[1659297751321,0.002,23878.0,23877.0,1.5858757]
[1659297751556,0.53067116,23888.0,23877.0,1.5858757]
[1659297751557,0.43370966,23890.0,23887.0,0.04188]
[1659297751821,0.43370966,23890.0,23888.0,0.50160807]
[1659297752040,0.43370966,23890.0,23888.0,0.40972807]
[1659297752266,0.43370966,23890.0,23883.0,0.204622]
[1659297752267,0.57760685,23889.0,23884.0,0.2949]
[1659297752490,0.03700274,23889.0,23885.0,0.41712433]
[1659297752714,0.002,23889.0,23886.0,0.40972829]
[1659297752937,0.002,23889.0,23887.0,0.009867]
[1659297753154,0.002,23889.0,23886.0,0.40972829]
[1659297753363,0.002,23889.0,23887.0,0.009865]
[1659297753597,0.03700274,23889.0,23886.0,0.40725733]
[1659297753811,0.53427685,23889.0,23886.0,0.40725733]
[1659297754067,0.002,23889.0,23887.0,0.007]
[1659297755381,0.002,23889.0,23886.0,0.40972829]
[1659297756061,0.002,23889.0,23886.0,0.41672829]
[1659297757020,0.49927411,23889.0,23886.0,0.41672829]
[1659297757254,1.04727411,23887.0,23886.0,0.007]
[1659297757479,1.04727411,23887.0,23884.0,0.2949]
[1659297757480,1.34819411,23887.0,23884.0,0.2949]
[1659297757717,0.59541865,23885.0,23884.0,0.2949]
[1659297757953,0.94633865,23885.0,23884.0,0.2949]
[1659297758210,0.73042139,23885.0,23884.0,0.2949]
[1659297758445,1.03134139,23885.0,23884.0,0.2949]
[1659297758669,1.03134139,23885.0,23880.0,0.06606935]
[1659297758670,0.09541865,23881.0,23880.0,0.06606935]
[1659297758897,0.80359598,23881.0,23880.0,0.06606935]
[1659297759129,0.93859872,23881.0,23880.0,0.06606935]
[1659297759355,0.53134139,23881.0,23880.0,0.06606935]
[1659297759653,0.6223,23887.0,23880.0,0.47332668]
[1659297759654,0.079,23887.0,23880.0,0.47332668]
[1659297759884,0.079,23887.0,23882.0,0.04188]
[1659297760109,7.147e-05,23888.0,23883.0,0.00272588]
[1659297760344,7.147e-05,23888.0,23884.0,0.45901133]
[1659297760575,7.147e-05,23888.0,23885.0,0.40725733]
[1659297760796,0.47995933,23889.0,23885.0,0.40725733]
[1659297761021,0.47995933,23889.0,23886.0,0.00272588]
[1659297761022,0.002,23889.0,23886.0,0.00272588]
[1659297761251,0.002,23889.0,23888.0,0.05]
[1659297761475,0.002,23889.0,23888.0,0.45725733]
[1659297762159,0.002,23889.0,23888.0,0.53898321]
[1659297763056,0.002,23889.0,23888.0,0.54884621]
[1659297763281,0.002,23889.0,23888.0,0.46984621]
[1659297763553,0.002,23889.0,23888.0,0.46998966]
[1659297764232,0.002,23889.0,23888.0,0.54884621]
[1659297764445,0.002,23889.0,23888.0,0.83898321]
[1659297764675,0.03700274,23889.0,23888.0,0.54612033]
[1659297764925,0.08264641,23888.0,23884.0,0.10272588]
[1659297765146,0.13264641,23888.0,23885.0,0.40725733]
[1659297765571,0.13264641,23888.0,23886.0,0.00014346]
[1659297765830,0.16764915,23888.0,23886.0,0.40725733]
[1659297766073,0.13264641,23888.0,23887.0,0.50186321]
[1659297766306,0.19464641,23888.0,23887.0,0.41985121]
[1659297766531,0.19464641,23888.0,23887.0,0.40998321]
[1659297766751,0.19464641,23888.0,23887.0,0.40725733]
[1659297766998,0.19464641,23888.0,23883.0,0.1]
[1659297767248,0.09541865,23884.0,23880.0,0.06606935]
[1659297767761,0.70817733,23883.0,23880.0,0.06606935]
[1659297767993,0.09541865,23881.0,23880.0,0.06606935]
[1659297768225,0.045,23884.0,23880.0,0.00272588]
[1659297768455,0.05,23881.0,23880.0,0.40725733]
[1659297768709,0.095,23884.0,23880.0,0.41986521]
[1659297768931,0.095,23884.0,23880.0,0.40725733]
[1659297769160,0.095,23884.0,23883.0,0.00272588]
[1659297769376,0.05,23884.0,23883.0,0.00272588]
[1659297769592,0.08264641,23888.0,23883.0,0.00272588]
[1659297769883,0.84082374,23888.0,23881.0,0.3]